Workbook

Sheet 기본작업-1
A1: [표1]
A2: 예매일자 | B2: 구분 | C2: 공연이름 | D2: 가격 | E2: 예매수량 | F2: 총금액
A3: 2022-06-09 | B3: 무용 | C3: 백설공주 | D3: 15000 | E3: 3 | F3: =D3*E3 -> 45000
A4: 2022-04-08 | B4: 가족극 | C4: 헨리의모험 | D4: 23000 | E4: 32 | F4: 736000
A5: 2022-05-11 | B5: 뮤지컬 | C5: 천사의노래 | D5: 31000 | E5: 2 | F5: 62000
A6: 2022-07-21 | B6: 가족극 | C6: 행복한우리집 | D6: 16000 | E6: 30 | F6: 480000
A7: 2022-06-09 | B7: 콘서트 | C7: 7080콘서트 | D7: 35000 | E7: 3 | F7: 105000
A8: 2022-06-29 | B8: 콘서트 | C8: 7080콘서트 | D8: 35000 | E8: 3 | F8: 105000
A9: 2022-04-05 | B9: 뮤지컬 | C9: 피노키오 | D9: 19900 | E9: 19 | F9: 378100
A10: 2022-05-08 | B10: 콘서트 | C10: 아이돌대축제 | D10: 43000 | E10: 29 | F10: 1247000
A11: 2022-02-05 | B11: 가족극 | C11: 요술친구 | D11: 21000 | E11: 15 | F11: 315000
A12: 2022-04-07 | B12: 가족극 | C12: 헨리의모험 | D12: 23000 | E12: 6 | F12: 138000
A13: 2022-01-25 | B13: 가족극 | C13: 행복한우리집 | D13: 16000 | E13: 5 | F13: 80000
A14: 2022-03-30 | B14: 뮤지컬 | C14: 피노키오 | D14: 19900 | E14: 21 | F14: 417900
A15: 2022-06-02 | B15: 콘서트 | C15: 아이돌대축제 | D15: 43000 | E15: 26 | F15: 1118000
A16: 2022-04-27 | B16: 가족극 | C16: 행복한우리집 | D16: 16000 | E16: 2 | F16: 32000
A17: 2022-05-20 | B17: 콘서트 | C17: 7080콘서트 | D17: 35000 | E17: 11 | F17: 385000
A18: 2022-05-07 | B18: 뮤지컬 | C18: 천사의노래 | D18: 31000 | E18: 21 | F18: 651000
A19: 2022-03-24 | B19: 무용 | C19: 백설공주 | D19: 15000 | E19: 5 | F19: 75000
A20: 2022-06-08 | B20: 뮤지컬 | C20: 피노키오 | D20: 19900 | E20: 9 | F20: 179100
A21: 2022-07-29 | B21: 무용 | C21: 백설공주 | D21: 15000 | E21: 19 | F21: 285000
A22: 2022-06-05 | B22: 콘서트 | C22: 7080콘서트 | D22: 35000 | E22: 10 | F22: 350000
A23: 2022-05-03 | B23: 가족극 | C23: 요술친구 | D23: 21000 | E23: 2 | F23: 42000
A24: 2022-02-27 | B24: 뮤지컬 | C24: 천사의노래 | D24: 31000 | E24: 27 | F24: 837000
A25: 2022-08-29 | B25: 뮤지컬 | C25: 피노키오 | D25: 19900 | E25: 5 | F25: 99500
A26: 2022-04-02 | B26: 뮤지컬 | C26: 천사의노래 | D26: 31000 | E26: 6 | F26: 186000
A27: 2022-07-25 | B27: 콘서트 | C27: 아이돌대축제 | D27: 43000 | E27: 4 | F27: 172000
A28: 2022-06-02 | B28: 가족극 | C28: 헨리의모험 | D28: 23000 | E28: 2 | F28: 46000
A30: 조건
A31: =AND(DAY($A3)>=20,$E3>=AVERAGE($E$3:$E$28)) -> FALSE
A34: 예매일자 | B34: 구분 | C34: 공연이름 | D34: 가격 | E34: 예매수량 | F34: 총금액
A35: 2022-07-21 | B35: 가족극 | C35: 행복한우리집 | D35: 16000 | E35: 30 | F35: 480000
A36: 2022-03-30 | B36: 뮤지컬 | C36: 피노키오 | D36: 19900 | E36: 21 | F36: 417900
A37: 2022-07-29 | B37: 무용 | C37: 백설공주 | D37: 15000 | E37: 19 | F37: 285000
A38: 2022-02-27 | B38: 뮤지컬 | C38: 천사의노래 | D38: 31000 | E38: 27 | F38: 837000

Sheet 기본작업-2
B2: [표1]
B3: 공연이름 | C3: 가격 | D3: 예매수량 합계 | E3: 총금액
B4: 아이돌대축제 | C4: 43000 | D4: 59 | E4: =C4*D4 -> 2537000
B5: 천사의노래 | C5: 31000 | D5: 56 | E5: 1736000
B6: 피노키오 | C6: 19900 | D6: 54 | E6: 1074600
B7: 헨리의모험 | C7: 23000 | D7: 40 | E7: 920000
B8: 행복한우리집 | C8: 16000 | D8: 37 | E8: 592000
B9: 7080콘서트 | C9: 35000 | D9: 27 | E9: 945000
B10: 백설공주 | C10: 15000 | D10: 27 | E10: 405000
B11: 요술친구 | C11: 21000 | D11: 17 | E11: 357000

Sheet 계산작업
A1: [표1] 공연별 매출액 | D1: [표2] 2/4분기 월별 최대 예매수량
A2: 공연이름 | B2: 총금액 평균 | D2: 예매월 | E2: 최대 예매수량
A3: 7080콘서트 | B3: =AVERAGEIFS($F$15:$F$40,$A$15:$A$40,$A3,$E$15:$E$40,">=5") -> 367500 | D3: 4 | E3: =MAXA((MONTH($C$15:$C$40)=$D3)*$E$15:$E$40) -> 32
A4: 피노키오 | B4: =AVERAGEIFS($F$15:$F$40,$A$15:$A$40,$A4,$E$15:$E$40,">=5") -> 268650 | D4: 5 | E4: =MAXA((MONTH($C$15:$C$40)=$D4)*$E$15:$E$40) -> 29
A5: 아이돌대축제 | B5: =AVERAGEIFS($F$15:$F$40,$A$15:$A$40,$A5,$E$15:$E$40,">=5") -> 1182500 | D5: 6 | E5: =MAXA((MONTH($C$15:$C$40)=$D5)*$E$15:$E$40) -> 26
A6: 요술친구 | B6: =AVERAGEIFS($F$15:$F$40,$A$15:$A$40,$A6,$E$15:$E$40,">=5") -> 315000
A7: 백설공주 | B7: =AVERAGEIFS($F$15:$F$40,$A$15:$A$40,$A7,$E$15:$E$40,">=5") -> 180000 | D7: [표3] 가격이 30,000 이상, 예매수량이 20 이상인 예매 건수
A8: 헨리의모험 | B8: =AVERAGEIFS($F$15:$F$40,$A$15:$A$40,$A8,$E$15:$E$40,">=5") -> 437000
A9: 천사의노래 | B9: =AVERAGEIFS($F$15:$F$40,$A$15:$A$40,$A9,$E$15:$E$40,">=5") -> 558000
A10: 행복한우리집 | B10: =AVERAGEIFS($F$15:$F$40,$A$15:$A$40,$A10,$E$15:$E$40,">=5") -> 280000
A13: [표4]
A14: 공연이름 | B14: 구분 | C14: 예매일자 | D14: 가격 | E14: 예매수량 | F14: 총금액 | G14: 누적개수 | H14: 할인액
A15: 7080콘서트 | B15: C-콘서트 | C15: 2020-06-09 | D15: 35000 | E15: 3 | F15: =D15*E15 -> 105000 | H15: =fn할인액($B15, $F15) -> 
A16: 피노키오 | B16: M-뮤지컬 | C16: 2020-04-05 | D16: 19900 | E16: 19 | F16: 378100 | H16: =fn할인액($B16, $F16) -> 56715
A17: 아이돌대축제 | B17: C-콘서트 | C17: 2020-05-08 | D17: 43000 | E17: 29 | F17: 1247000 | H17: 124700
A18: 요술친구 | B18: K-가족극 | C18: 2020-02-05 | D18: 21000 | E18: 15 | F18: 315000
A19: 백설공주 | B19: Y-무용 | C19: 2020-07-15 | D19: 15000 | E19: 19 | F19: 285000
A20: 7080콘서트 | B20: C-콘서트 | C20: 2020-06-05 | D20: 35000 | E20: 10 | F20: 350000 | H20: 35000
A21: 요술친구 | B21: K-가족극 | C21: 2020-05-03 | D21: 21000 | E21: 2 | F21: 42000
A22: 천사의노래 | B22: M-뮤지컬 | C22: 2020-02-01 | D22: 31000 | E22: 27 | F22: 837000 | H22: 125550
A23: 헨리의모험 | B23: K-가족극 | C23: 2020-04-07 | D23: 23000 | E23: 6 | F23: 138000
A24: 행복한우리집 | B24: K-가족극 | C24: 2020-01-09 | D24: 16000 | E24: 5 | F24: 80000
A25: 피노키오 | B25: M-뮤지컬 | C25: 2020-02-12 | D25: 19900 | E25: 21 | F25: 417900 | H25: 62685
A26: 아이돌대축제 | B26: C-콘서트 | C26: 2020-06-02 | D26: 43000 | E26: 26 | F26: 1118000 | H26: 111800
A27: 백설공주 | B27: Y-무용 | C27: 2020-06-09 | D27: 15000 | E27: 3 | F27: 45000
A28: 헨리의모험 | B28: K-가족극 | C28: 2020-04-08 | D28: 23000 | E28: 32 | F28: 736000
A29: 천사의노래 | B29: M-뮤지컬 | C29: 2020-05-11 | D29: 31000 | E29: 2 | F29: 62000
A30: 행복한우리집 | B30: K-가족극 | C30: 2020-07-08 | D30: 16000 | E30: 30 | F30: 480000
A31: 7080콘서트 | B31: C-콘서트 | C31: 2020-06-09 | D31: 35000 | E31: 3 | F31: 105000
A32: 행복한우리집 | B32: K-가족극 | C32: 2020-04-05 | D32: 16000 | E32: 2 | F32: 32000
A33: 7080콘서트 | B33: C-콘서트 | C33: 2020-05-19 | D33: 35000 | E33: 11 | F33: 385000 | H33: 38500
A34: 천사의노래 | B34: M-뮤지컬 | C34: 2020-05-07 | D34: 31000 | E34: 21 | F34: 651000 | H34: 97650
A35: 백설공주 | B35: Y-무용 | C35: 2020-03-24 | D35: 15000 | E35: 5 | F35: 75000
A36: 피노키오 | B36: M-뮤지컬 | C36: 2020-06-08 | D36: 19900 | E36: 9 | F36: 179100
A37: 피노키오 | B37: M-뮤지컬 | C37: 2020-08-14 | D37: 19900 | E37: 5 | F37: 99500
A38: 천사의노래 | B38: M-뮤지컬 | C38: 2020-04-02 | D38: 31000 | E38: 6 | F38: 186000
A39: 아이돌대축제 | B39: C-콘서트 | C39: 2020-07-11 | D39: 43000 | E39: 4 | F39: 172000
A40: 헨리의모험 | B40: K-가족극 | C40: 2020-06-02 | D40: 23000 | E40: 2 | F40: 46000

Sheet 분석작업-1
A2: 구분 | B2: 뮤지컬
D4: 공연이름
A5: 분기 | B5: 예매일자 | C5: 값 | D5: 천사의노래 | E5: 피노키오 | F5: 총합계
A6: 1사분기
B7: 2월
C8: 최대 : 예매수량 | D8: 27 | E8: 21 | F8: 27
C9: 최대 : 총금액 | D9: 837000 | E9: 417900 | F9: 837000
A10: 1사분기 최대 : 예매수량 | D10: 27 | E10: 21 | F10: 27
A11: 1사분기 최대 : 총금액 | D11: 837000 | E11: 417900 | F11: 837000
A12: 2사분기
B13: 4월
C14: 최대 : 예매수량 | D14: 6 | E14: 19 | F14: 19
C15: 최대 : 총금액 | D15: 186000 | E15: 378100 | F15: 378100
B16: 5월
C17: 최대 : 예매수량 | D17: 21 | E17: *** | F17: 21
C18: 최대 : 총금액 | D18: 651000 | E18: *** | F18: 651000
B19: 6월
C20: 최대 : 예매수량 | D20: *** | E20: 9 | F20: 9
C21: 최대 : 총금액 | D21: *** | E21: 179100 | F21: 179100
A22: 2사분기 최대 : 예매수량 | D22: 21 | E22: 19 | F22: 21
A23: 2사분기 최대 : 총금액 | D23: 651000 | E23: 378100 | F23: 651000
A24: 3사분기
B25: 8월
C26: 최대 : 예매수량 | D26: *** | E26: 5 | F26: 5
C27: 최대 : 총금액 | D27: *** | E27: 99500 | F27: 99500
A28: 3사분기 최대 : 예매수량 | D28: *** | E28: 5 | F28: 5
A29: 3사분기 최대 : 총금액 | D29: *** | E29: 99500 | F29: 99500
A30: 전체 최대 : 예매수량 | D30: 27 | E30: 21 | F30: 27
A31: 전체 최대 : 총금액 | D31: 837000 | E31: 417900 | F31: 837000

Sheet 분석작업-2
B2: [표1]
B3: 공연이름 | C3: 구분 | D3: 예매일자 | E3: 가격 | F3: 예매수량 | G3: 총금액
B4: 행복한우리집 | C4: 가족극 | D4: 2020-07-08 | E4: 16000 | F4: 30 | G4: 480000
B5: 헨리의모험 | C5: 가족극 | D5: 2020-06-02 | E5: 23000 | F5: 2 | G5: 46000
B6: 요술친구 | C6: 가족극 | D6: 2020-05-03 | E6: 21000 | F6: 2 | G6: 42000
B7: 헨리의모험 | C7: 가족극 | D7: 2020-04-08 | E7: 23000 | F7: 32 | G7: 736000
B8: 헨리의모험 | C8: 가족극 | D8: 2020-04-07 | E8: 23000 | F8: 6 | G8: 138000
B9: 행복한우리집 | C9: 가족극 | D9: 2020-04-05 | E9: 16000 | F9: 2 | G9: 32000
B10: 요술친구 | C10: 가족극 | D10: 2020-02-05 | E10: 21000 | F10: 15 | G10: 315000
B11: 행복한우리집 | C11: 가족극 | D11: 2020-01-09 | E11: 16000 | F11: 5 | G11: 80000
C12: 가족극 평균 | F12: =SUBTOTAL(1,F4:F11) -> 11.75 | G12: =SUBTOTAL(1,G4:G11) -> 233625
C13: 가족극 요약 | F13: =SUBTOTAL(9,F4:F11) -> 94 | G13: =SUBTOTAL(9,G4:G11) -> 1869000
B14: 백설공주 | C14: 무용 | D14: 2020-07-15 | E14: 15000 | F14: 19 | G14: 285000
B15: 백설공주 | C15: 무용 | D15: 2020-06-09 | E15: 15000 | F15: 3 | G15: 45000
B16: 백설공주 | C16: 무용 | D16: 2020-03-24 | E16: 15000 | F16: 5 | G16: 75000
C17: 무용 평균 | F17: =SUBTOTAL(1,F14:F16) -> 9 | G17: =SUBTOTAL(1,G14:G16) -> 135000
C18: 무용 요약 | F18: =SUBTOTAL(9,F14:F16) -> 27 | G18: =SUBTOTAL(9,G14:G16) -> 405000
B19: 피노키오 | C19: 뮤지컬 | D19: 2020-08-14 | E19: 19900 | F19: 5 | G19: 99500
B20: 피노키오 | C20: 뮤지컬 | D20: 2020-06-08 | E20: 19900 | F20: 9 | G20: 179100
B21: 천사의노래 | C21: 뮤지컬 | D21: 2020-05-11 | E21: 31000 | F21: 2 | G21: 62000
B22: 천사의노래 | C22: 뮤지컬 | D22: 2020-05-07 | E22: 31000 | F22: 21 | G22: 651000
B23: 피노키오 | C23: 뮤지컬 | D23: 2020-04-05 | E23: 19900 | F23: 19 | G23: 378100
B24: 천사의노래 | C24: 뮤지컬 | D24: 2020-04-02 | E24: 31000 | F24: 6 | G24: 186000
B25: 피노키오 | C25: 뮤지컬 | D25: 2020-02-12 | E25: 19900 | F25: 21 | G25: 417900
B26: 천사의노래 | C26: 뮤지컬 | D26: 2020-02-01 | E26: 31000 | F26: 27 | G26: 837000
C27: 뮤지컬 평균 | F27: =SUBTOTAL(1,F19:F26) -> 13.75 | G27: =SUBTOTAL(1,G19:G26) -> 351325
C28: 뮤지컬 요약 | F28: =SUBTOTAL(9,F19:F26) -> 110 | G28: =SUBTOTAL(9,G19:G26) -> 2810600
B29: 아이돌대축제 | C29: 콘서트 | D29: 2020-07-11 | E29: 43000 | F29: 4 | G29: 172000
B30: 7080콘서트 | C30: 콘서트 | D30: 2020-06-09 | E30: 35000 | F30: 3 | G30: 105000
B31: 7080콘서트 | C31: 콘서트 | D31: 2020-06-05 | E31: 35000 | F31: 10 | G31: 350000
B32: 아이돌대축제 | C32: 콘서트 | D32: 2020-06-02 | E32: 43000 | F32: 26 | G32: 1118000
B33: 7080콘서트 | C33: 콘서트 | D33: 2020-05-19 | E33: 35000 | F33: 11 | G33: 385000
B34: 아이돌대축제 | C34: 콘서트 | D34: 2020-05-08 | E34: 43000 | F34: 29 | G34: 1247000
C35: 콘서트 평균 | F35: =SUBTOTAL(1,F29:F34) -> 13.83333333 | G35: =SUBTOTAL(1,G29:G34) -> 562833.3333
C36: 콘서트 요약 | F36: =SUBTOTAL(9,F29:F34) -> 83 | G36: =SUBTOTAL(9,G29:G34) -> 3377000
C37: 전체 평균 | F37: =SUBTOTAL(1,F4:F34) -> 12.56 | G37: =SUBTOTAL(1,G4:G34) -> 338464
C38: 총합계 | F38: =SUBTOTAL(9,F4:F34) -> 314 | G38: =SUBTOTAL(9,G4:G34) -> 8461600

Sheet 기타작업-1
A1: 공연별 관람 현황
A3: 공연이름 | B3: 10월 | C3: 11월 | D3: 12월
A4: 7080콘서트 | B4: 1250 | C4: 1250 | D4: 5420
A5: 피노키오 | B5: 2543 | C5: 251 | D5: 2541
A6: 아이돌대축제 | B6: 1251 | C6: 3541 | D6: 5235
A7: 요술친구 | B7: 2543 | C7: 2541 | D7: 2152
A8: 백설공주 | B8: 1245 | C8: 2354 | D8: 5254
A9: 헨리의모험 | B9: 2515 | C9: 2510 | D9: 1442
A10: 천사의노래 | B10: 5212 | C10: 2358 | D10: 2541
A11: 행복한우리집 | B11: 1254 | C11: 2510 | D11: 5841

Sheet 기타작업-2
B2: [표1]
B3: 공연이름 | C3: 가격 | D3: 예매수량 | E3: 총금액
B4: 7080콘서트 | C4: 35000 | D4: 100 | E4: =C4*D4 -> 3500000
B5: 백설공주 | C5: 15000 | D5: 35 | E5: 525000
B6: 아이돌대축제 | C6: 43000 | D6: 89 | E6: 3827000
B7: 요술친구 | C7: 21000 | D7: 120 | E7: 2520000
B8: 천사의노래 | C8: 31000 | D8: 75 | E8: 2325000
B9: 피노키오 | C9: 19900 | D9: 30 | E9: 597000
B10: 행복한우리집 | C10: 16000 | D10: 59 | E10: 944000
B11: 헨리의모험 | C11: 23000 | D11: 80 | E11: 1840000

Sheet 기타작업-3
C1: [표1] | D1: 공연 예매
C4: 예매일자 | D4: 공연장 | E4: 공연명 | F4: 좌석수 | G4: 구분 | H4: 가격 | I4: 총금액 | K4: 공연명 | L4: 구분 | M4: 가격
C5: 2023-11-30 | D5: 아트센터 | E5: 피노키오 | F5: 2 | G5: 뮤지컬 | H5: 19900 | I5: 39,800원 | K5: 7080콘서트 | L5: 콘서트 | M5: 35000
C6: 2023-11-30 | D6: 대학로소극장 | E6: 요술친구 | F6: 4 | G6: 가족극 | H6: 21000 | I6: 84,000원 | K6: 피노키오 | L6: 뮤지컬 | M6: 19900
K7: 아이돌대축제 | L7: 콘서트 | M7: 43000
K8: 요술친구 | L8: 가족극 | M8: 21000
K9: 백설공주 | L9: 무용 | M9: 15000
K10: 헨리의모험 | L10: 가족극 | M10: 23000
K11: 천사의노래 | L11: 뮤지컬 | M11: 31000
K12: 행복한우리집 | L12: 가족극 | M12: 16000
